{"text_format":"1","workbook":"xlsx","n_sheets":7,"sheets":["Steuerung","Erläuterungen","Eingabedaten","Parm","MA-Stammdaten","Muster Abrechnung","Muster Stammdaten"],"not_rendered":{"charts":0,"images":18,"macros":1,"external_links":0,"defined_names":95,"comments":0,"pivot_tables":0},"unopened":[],"bounds":{"document_bytes":16777216,"sheet_cells":100000,"rows_first":2000,"rows_last":500,"rows_between":2000,"halvings":0,"cell_chars":16384,"cell_head_chars":4096},"cells_cut":0,"cells_raw":0,"read":"whole","date_system":"1900"}

{"sheet":"Steuerung","index":0,"n_rows":30,"n_cols":2,"rows_kept":30,"cut":false,"hidden":false,"merged":[[2,1,2,5],[3,1,3,5]]}
[]
[]
[null,"Kurzarbeitsbeihilfe AMSG"]
[null,"Projekte mit Beginn ab 01.10.2023"]
[]
[]
[]
[]
[]
[]
[]
[]
[]
[]
[]
[]
[]
[]
[]
[]
[]
[]
[]
[]
[]
[]
[]
[]
[]
["Version 7.231"]

{"sheet":"Erläuterungen","index":1,"n_rows":5,"n_cols":6,"rows_kept":5,"cut":false,"hidden":false,"merged":[]}
[]
[]
[]
[]
[null,null,null,null,null," "]

{"sheet":"Eingabedaten","index":2,"n_rows":18,"n_cols":7,"rows_kept":18,"cut":false,"hidden":true,"merged":[[15,1,15,4],[16,1,16,4]]}
[]
[5]
["aktuelle Projektdaten:",null,null,null,"Abrechnungsdaten:"]
["Projektnummer",null,{"$f":"Min_Projektnummer","v":"3953-06-05"}]
[null,null,null,null,"Abrechnung von:","2024-11-01",45597]
["Beginn der Kurzarbeit",null,{"$f":"IF(ISBLANK(B14),Stichtag,MAX(B14+1,Stichtag))","v":"2023-10-01"},null,"Abrechnung bis:",{"$f":"IF(AND(MONTH(F5)=MONTH(EGD_Projektende),YEAR(F5)=YEAR(EGD_Projektende)),EGD_Projektende,DATE(YEAR(F5),MONTH(F5)+1,0))","v":"2024-11-30"}]
["Ende der Kurzarbeit",null,{"$f":"Stichtag_Ende","v":"2999-12-31"}]
["besondere SV Beiträge Kurzarbeit ab Monat",null,{"$f":"Stichtag","v":"2023-10-01"}]
[]
[]
["Vorgängerprojekt im Fall einer Verlängerung:"]
["Projektnummer alt"]
["Beginn der Kurzarbeit"]
["Ende der Kurzarbeit"]
[]
[]
[]
["Stichtag:"]

{"sheet":"Parm","index":3,"n_rows":70,"n_cols":27,"rows_kept":70,"cut":false,"hidden":true,"merged":[]}
["Allgemeine Referenzdaten",null,null,null,null,null,null,null,null,null,null,null,null,null,null,null,null,null,null,null,null,null,null,null,null,null,"4711_AmS!"]
["MA_Stammdaten_Blatt_prüfen",null,null,true]
["MA_Stammdaten_Blatt_OK",null,null,true]
["tmp_path","Temp Path",null,"c:\\tmp\\"]
["Max_Personen","Max.Personen","Anzahl",9999]
["FW_Tage_im_Monat_Basis","Tage_im_Monat","Anzahl",30]
["FW_Tage_im_Monat","Tage_im_Monat","Anzahl",{"$f":"365/12","v":30.416666666666668}]
["FW_Anzahl_Kinder","Anzahl_Kinder","Anzahl",1]
["FW_Tage_im_Jahr","Tage_im_Jahr","Anzahl",365]
["FW_Wochen_im_Jahr","Wochen_im_Jahr","Anzahl",{"$f":"ROUND(365/7,2)","v":52.14}]
["FW_Wochen_im_Monat","Wochen_im_Monat","Anzahl",4.33]
[]
["Gültigkeit von dem Projektexcel"]
["Stichtag","Stichtag",null,"2023-10-01"]
["Stichtag_Ende","Stichtag Ende",null,"2999-12-31"]
["Min_Projektnummer","kleinste Projektnummer",null,750000]
["Max Abrechnungsjahr","bis zu diesem Jahr sind die Referenzwerte hinterlegt",null,2024,null,"=> bei einem Abrechnungsjahr darüber werden die Werte von dem letzten Jahr genommen (das sollte aber eigentlich nie der Fall sein)"]
[]
["Referenzwerte zur Berechnung KUA/QUAL",null,"Jahr",2022,2023,2024]
["HBMG_",null,"Euro",5670,5850,6060]
["GFKG_",null,"Euro",485.85,500.91,518.44000000000005]
["Beitragssatz_DN_","SV Beitragssatz Dienstnehmer","Prozent",18.12,18.12,18.07]
["Beitragssatz_DG_","SV Beitragssatz Dienstgeber","Prozent",21.13,21.03,20.98]
["KUA_ALG_SV_Aufschlag",null,"Prozent",45.3,45.3,45.3]
["KUA_DN_Anteil_",null,"Prozent",20.91,20.97,20.96]
["KUA_DG_Anteil_",null,"Prozent",24.39,24.33,24.34]
["KUA_ERH_DGSV_AB",null,"Monate",3,3,3]
[]
["QUAL_ALG_SV_Aufschlag",null,"Prozent",46.5,46.5,46.4]
["QUAL_DN_Anteil_",null,"Prozent",21.47,21.52,21.47]
["QUAL_DG_Anteil_",null,"Prozent",25.03,24.98,24.93]
[]
[]
[]
["Referenzwerte zur Berechnung ALG Tagsatz",null,null,2022,2023,2024]
["ALGTS_FZ_","Familienzuschlag","Euro",0.97,0.97,0.97]
["ALGTS_AZR_","Ausgleichszulagenrichtsatz_tgl","Euro",34.35,37.01,40.6]
["ALGTS_Maximum_","Max_Alg_Tagsatz","Euro",60.81,72.010000000000005,75.400000000000006]
["ALGTS_Grundbetrag_","Grundbetrag_Alg","Prozent",55,55,55]
["ALGTS_Obergrenze_FZ_","Obergrenze_Alg_mit_FZ","Prozent",67,67,67]
["ALGTS_DN_SZ_Freigrenze_","Freigrenze_DN_SZ","Euro",2100,2100,2100]
["ALGTS_DN_SZ_Freibetrag_","Freibetrag_DN_SZ","Euro",620,620,620]
["ALGTS_DN_Beitragsssatz_","Beitragssatz_DN","Prozent",18.12,18.12,18.07]
["ALGTS_DN_Beitragsssatz_SZ_","Beitragssatz_DN_SZ","Prozent",17.12,17.12,17.07]
["ALGTS_Lohnsteuer_SZ_","Lohnsteuer_Sonderzahlungen","Prozent",6,6,6]
["ALGTS_Werbungskosten_","Werbungskosten Pauschale","Euro",132,132,132]
["ALGTS_AVAB_","Verkehrsabsetzbetrag","Euro",400,421,463]
[]
[]
["Lohnsteuertabellen"]
["LST_2022","von",null,0,11000.01,18000.009999999998,31000.01,60000.01,90000.01,1000000.01]
[null,"bis",null,11000,18000,31000,60000,90000,1000000,9999999]
[null,"Grenzsteuersatz",null,0,0.2,0.32500000000000001,0.42,0.48,0.5,0.55000000000000004]
[null,"AVAB",null,0,2200,4450,7395,10995,12795,62795]
[]
["BERECHNET","allg.Abzug",null,null,{"$f":"ROUND(($D52-$C52)*($E53-$D53),2)","v":2200},{"$f":"ROUND(($D52-$C52)*($F53-$D53)+($E52-$E51)*($F53-$E53),2)","v":4450},{"$f":"ROUND(($D52-$C52)*($G53-$D53)+($E52-$D52)*($G53-$E53)+($F52-$F51)*($G53-$F53),2)","v":7395},{"$f":"ROUND(($D52-$C52)*($H53-$D53)+($E52-$D52)*($H53-$E53)+($F52-$E52)*($H53-$F53)+($G52-G51)*($H53-$G53),2)","v":10995},{"$f":"ROUND(($D52-$C52)*(I53-$D53)+($E52-$D52)*(I53-$E53)+($F52-$E52)*(I53-$F53)+($G52-$F52)*(I53-$G53)+($H52-$H51)*(I53-$H53),2)","v":12795},{"$f":"ROUND(($D52-$C52)*(J53-$D53)+($E52-$D52)*(J53-$E53)+($F52-$E52)*(J53-$F53)+($G52-$F52)*(J53-$G53)+($H52-$G52)*(J53-$H53)+($I52-$I51)*(J53-$I53),2)","v":62795}]
[]
["LST_2023","von",null,0,11693.01,19134.009999999998,32075.01,62080.01,93120.01,1000000.01]
[null,"bis",null,11693,19134,32075,62080,93120,1000000,9999999]
[null,"Grenzsteuersatz",null,0,0.2,0.3,0.41,0.48,0.5,0.55000000000000004]
[null,"allg.Abzug",null,0,2338.6,4252,7780.25,12125.85,13988.25,63988.25]
[]
["BERECHNET","allg.Abzug",null,null,{"$f":"ROUND(($D59-$C59)*($E60-$D60),2)","v":2338.6},{"$f":"ROUND(($D59-$C59)*($F60-$D60)+($E59-$E58)*($F60-$E60),2)","v":4252},{"$f":"ROUND(($D59-$C59)*($G60-$D60)+($E59-$D59)*($G60-$E60)+($F59-$F58)*($G60-$F60),2)","v":7780.25},{"$f":"ROUND(($D59-$C59)*($H60-$D60)+($E59-$D59)*($H60-$E60)+($F59-$E59)*($H60-$F60)+($G59-G58)*($H60-$G60),2)","v":12125.85},{"$f":"ROUND(($D59-$C59)*(I60-$D60)+($E59-$D59)*(I60-$E60)+($F59-$E59)*(I60-$F60)+($G59-$F59)*(I60-$G60)+($H59-$H58)*(I60-$H60),2)","v":13988.25},{"$f":"ROUND(($D59-$C59)*(J60-$D60)+($E59-$D59)*(J60-$E60)+($F59-$E59)*(J60-$F60)+($G59-$F59)*(J60-$G60)+($H59-$G59)*(J60-$H60)+($I59-$I58)*(J60-$I60),2)","v":63988.25}]
[]
["LST_2024","von",null,0,12816.01,20818.009999999998,34513.01,66612.009999999995,99266.01,1000000.01]
[null,"bis",null,12816,20818,34513,66612,99266,1000000,9999999]
[null,"Grenzsteuersatz",null,0,0.2,0.3,0.4,0.48,0.5,0.55000000000000004]
[null,"allg.Abzug",null,0,2563.1999999999998,4645,8096.3,13425.26,15410.58,65410.58]
[]
["BERECHNET","allg.Abzug",null,null,{"$f":"ROUND(($D66-$C66)*($E67-$D67),2)","v":2563.1999999999998},{"$f":"ROUND(($D66-$C66)*($F67-$D67)+($E66-$E65)*($F67-$E67),2)","v":4645},{"$f":"ROUND(($D66-$C66)*($G67-$D67)+($E66-$D66)*($G67-$E67)+($F66-$F65)*($G67-$F67),2)","v":8096.3},{"$f":"ROUND(($D66-$C66)*($H67-$D67)+($E66-$D66)*($H67-$E67)+($F66-$E66)*($H67-$F67)+($G66-G65)*($H67-$G67),2)","v":13425.26},{"$f":"ROUND(($D66-$C66)*(I67-$D67)+($E66-$D66)*(I67-$E67)+($F66-$E66)*(I67-$F67)+($G66-$F66)*(I67-$G67)+($H66-$H65)*(I67-$H67),2)","v":15410.58},{"$f":"ROUND(($D66-$C66)*(J67-$D67)+($E66-$D66)*(J67-$E67)+($F66-$E66)*(J67-$F67)+($G66-$F66)*(J67-$G67)+($H66-$G66)*(J67-$H67)+($I66-$I65)*(J67-$I67),2)","v":65410.58}]

{"sheet":"MA-Stammdaten","index":4,"n_rows":2,"n_cols":16,"rows_kept":2,"cut":false,"hidden":false,"merged":[]}
[1,2,3,4,5,6,7,8,9,10,11,12,13,14,15,16]
["SV-Nummer","Familienname","Vorname","Bruttoentgelt vor Kurzarbeit \nin Euro pro Monat","Normalarbeitszeit vor Kurzarbeit\nin Stunden pro Woche","Normalarbeitszeitstunden","Feiertage in Stunden","Stunden für die Ersatzleistungen gebühren","geleistete Arbeitsstunden","konsumierter Urlaub","konsumiertes Zeitguthaben/sonstige Dienstverhinderungen","Entgeltfortzahlung für Krankenstand","geleistete Überstunden","davon verrechnete Ausfallstunden für Qualifizierungsunterstützung","Abrechnungszeitraum von","Abrechnungszeitraum bis"]

{"sheet":"Muster Abrechnung","index":5,"n_rows":4,"n_cols":35,"rows_kept":4,"cut":false,"hidden":true,"merged":[]}
["2023-10-01","2023-10-31",null,null,null,null,null,null,null,null,null,null,null,null,null,null,null,null,null,null,null,null,null,null,null,null,null,{"$f":"IF(YEAR($A$1)>=MAX_JAHR_REFDATEN,MAX_JAHR_REFDATEN,YEAR($A$1))","v":2023},{"$f":"IF(AND(DAY($A$1)=1,DAY(EOMONTH($B$1,0))=DAY($B$1)),30,_xlfn.DAYS($B$1,$A$1)+1)","v":30},{"$f":"IF(AND(EGD_erh_DGSV_Ab<=$A$1,EGD_erh_DGSV_Ab>0),\"J\",\"N\")","v":"N"}]
["SV-Nummer","Familienname","Vorname","Bruttoentgelt vor Kurzarbeit \nin Euro pro Monat","Normalarbeits-zeit vor Kurzarbeit\nin Stunden pro Woche","Normalarbeits-zeitstunden laut Kollektivvertrag/\nArbeitsvertrag \nin Stunden im Abrechnungs-zeitraum","Feiertage\nin Stunden im Abrechnungs-zeitraum","Stunden, für die Ersatzleistungen gebühren\nin Stunden im Abrechnungs-zeitraum","geleistete Arbeitsstunden\nin Stunden im Abrechnungs-zeitraum","konsumierter Urlaub\nin Stunden im Abrechnungs-zeitraum","konsumiertes Zeitguthaben/\nsonstige Dienst-verhinderungen \nin Stunden im Abrechnungs-zeitraum","Entgeltfortzahlung für Krankenstand in der geplanten Arbeitszeit\nin Stunden im Abrechnungs-zeitraum","errechnete Ausfallstunden\nin Stunden im Abrechnungs-zeitraum","geleistete Überstunden\nin Stunden im Abrechnungs-zeitraum","verrechnete Ausfallstunden\nin Stunden im Abrechnungs-zeitraum","davon verrechnete Ausfallstunden für Qualifizierungs-unterstützung \nin Stunden im Abrechnungs-zeitraum","verrechnete Ausfallstunden für Kurzarbeits-unterstützung \nin Stunden im Abrechnungs-zeitraum","verrechnete Kurzarbeits-unterstützung \nin Euro für den Abrechnungs-zeitraum","DG-SV Kurzarbeits-unterstützung \nin Euro für den Abrechnungs-zeitraum","besondere SV Beiträge Kurzarbeit \nin Euro für den Abrechnungs-zeitraum","verrechnete Qualifizierungs-unterstützung \nin Euro für den Abrechnungs-zeitraum","DG-SV Qualifizierungs-unterstützung \nin Euro für den Abrechnungs-zeitraum","besondere SV Beiträge Kurzarbeit mit Qualifizierung\nin Euro für den Abrechnungs-zeitraum","verrechnete Beihilfe gesamt\nin Euro für den Abrechnungs-zeitraum","Abrechnungs-\nzeitraum\nvon","Abrechnungs-\nzeitraum\nbis",null,"SV mtl.","BMGL LST jährlich","LST jährlich","SZ jährlich","SV SZ jährlich","Netto\r\ninkl. SZ\r\ntäglich","ALG Tagsatz KUA","Differenz fiktive Bem.grundlage"]
[null,null,null,null,null,null,null,null,null,null,null,null,{"$f":"IF(ISNUMBER($F3),ROUND(ROUND($F3,2)-ROUND($G3,2)-ROUND($H3,2)-ROUND($I3,2)-ROUND($J3,2)-ROUND($K3,2)-ROUND($L3,2),2),0)","v":0},null,{"$f":"IF(ISNUMBER($M3),MAX(ROUND(ROUND($M3,2)-ROUND($N3,2),2),0),0)","v":0},null,{"$f":"IF(ISNUMBER($O3),MAX(ROUND(ROUND($O3,2)-ROUND($P3,2),2),0),0)","v":0},{"$f":"ROUND($Q3*($AH3*FW_Tage_im_Jahr/FW_Wochen_im_Jahr/$E3)*((100+KUA_DN_Anteil_2022)/100),2)","v":{"$error":"#DIV/0!"}},{"$f":"ROUND($Q3*($AH3*FW_Tage_im_Jahr/FW_Wochen_im_Jahr/$E3)*(KUA_DG_Anteil_2022/100),2)","v":{"$error":"#DIV/0!"}},{"$f":"IF($AD$1=\"J\",ROUND($AI3*(Beitragssatz_DN_2022+Beitragssatz_DG_2022)/100,2)-$W3,0)","v":0},{"$f":"ROUND($P3*($AH3*1.15*FW_Tage_im_Jahr/FW_Wochen_im_Jahr/$E3)*((100+QUAL_DN_Anteil_2022)/100),2)","v":{"$error":"#DIV/0!"}},{"$f":"ROUND($P3*($AH3*1.15*FW_Tage_im_Jahr/FW_Wochen_im_Jahr/$E3)*(QUAL_DG_Anteil_2022/100),2)","v":{"$error":"#DIV/0!"}},{"$f":"IF(ROUND($P3+$Q3,2)=0,0,ROUND((($AI3*(Beitragssatz_DN_2022+Beitragssatz_DG_2022)/100)/($P3+$Q3))*$P3,2))","v":0},{"$f":"SUM(R3:W3)","v":{"$error":"#DIV/0!"}},null,null,null,{"$f":"ROUNDDOWN(ROUND($D3,2)*ALGTS_DN_Beitragsssatz_2022/100,2)","v":0},{"$f":"MAX(0,(ROUND($D3,2)-$AB3)*12-ALGTS_Werbungskosten_2022)","v":0},{"$f":"MAX(0,ROUNDDOWN($AC3*INDEX(LST_JAHR_2022,3,MATCH($AC3,OFFSET(LST_JAHR_2022,0,0,1),1))-INDEX(LST_JAHR_2022,4,MATCH($AC3,OFFSET(LST_JAHR_2022,0,0,1),1)),2)-ALGTS_AVAB_2022)","v":0},{"$f":"ROUNDDOWN(ROUND($D3,2)/12,2)*2*12","v":0},{"$f":"ROUNDDOWN($AE3*(ALGTS_DN_Beitragsssatz_SZ_2022/100),2)","v":0},{"$f":"ROUNDDOWN((ROUNDDOWN(((ROUND($D3,2)-$AB3)*12-$AD3)/12,2)+ROUNDDOWN(($AE3-$AF3-ROUNDDOWN(IF($AE3<=ALGTS_DN_SZ_Freigrenze_2022,0,($AE3-$AF3-ALGTS_DN_SZ_Freibetrag_2022)*(ALGTS_Lohnsteuer_SZ_2022/100)),2))/12,2))/FW_Tage_im_Monat,2)","v":0},{"$f":"IF(ROUND($D3,2)<=GFKG_2022,0,ROUND(IF($AG3*(ALGTS_Grundbetrag_2022/100)>ALGTS_AZR_2022,MIN($AG3*(ALGTS_Grundbetrag_2022/100),ALGTS_Maximum_2022)+ALGTS_FZ_2022,MIN(ALGTS_AZR_2022+ALGTS_FZ_2022,$AG3*(ALGTS_Obergrenze_FZ_2022/100))),2))","v":0},{"$f":"IF(ROUND($D3,2)<=GFKG_2022,0,MAX(0,(ROUND(MIN(ROUND($D3,2),HBMG_2022)/FW_Tage_im_Monat_Basis*$AC$1,2)-$R3-$U3-ROUND(($F3-$O3)*ROUND($D3,2)/FW_Wochen_im_Monat/$E3,2))))","v":0}]
[null,null,null,null,null,null,null,null,null,null,null,null,{"$f":"IF(ISNUMBER($F4),ROUND(ROUND($F4,2)-ROUND($G4,2)-ROUND($H4,2)-ROUND($I4,2)-ROUND($J4,2)-ROUND($K4,2)-ROUND($L4,2),2),0)","v":0},null,{"$f":"IF(ISNUMBER($M4),MAX(ROUND(ROUND($M4,2)-ROUND($N4,2),2),0),0)","v":0},null,{"$f":"IF(ISNUMBER($O4),MAX(ROUND(ROUND($O4,2)-ROUND($P4,2),2),0),0)","v":0},{"$f":"ROUND($Q4*($AH4*FW_Tage_im_Jahr/FW_Wochen_im_Jahr/$E4)*((100+INDIRECT(CONCATENATE(\"KUA_DN_Anteil_\",$AB$1)))/100),2)","v":{"$error":"#DIV/0!"}},{"$f":"ROUND($Q4*($AH4*FW_Tage_im_Jahr/FW_Wochen_im_Jahr/$E4)*(INDIRECT(CONCATENATE(\"KUA_DG_Anteil_\",$AB$1))/100),2)","v":{"$error":"#DIV/0!"}},{"$f":"IF($AD$1=\"J\",ROUND($AI4*(INDIRECT(CONCATENATE(\"Beitragssatz_DN_\",$AB$1))+INDIRECT(CONCATENATE(\"Beitragssatz_DG_\",$AB$1)))/100,2)-$W4,0)","v":0},{"$f":"ROUND($P4*($AH4*1.15*FW_Tage_im_Jahr/FW_Wochen_im_Jahr/$E4)*((100+INDIRECT(CONCATENATE(\"QUAL_DN_Anteil_\",$AB$1)))/100),2)","v":{"$error":"#DIV/0!"}},{"$f":"ROUND($P4*($AH4*1.15*FW_Tage_im_Jahr/FW_Wochen_im_Jahr/$E4)*(INDIRECT(CONCATENATE(\"QUAL_DG_Anteil_\",$AB$1))/100),2)","v":{"$error":"#DIV/0!"}},{"$f":"IF(ROUND($P4+$Q4,2)=0,0,ROUND((($AI4*(INDIRECT(CONCATENATE(\"Beitragssatz_DN_\",$AB$1))+INDIRECT(CONCATENATE(\"Beitragssatz_DG_\",$AB$1)))/100)/($P4+$Q4))*$P4,2))","v":0},{"$f":"SUM(R4:W4)","v":{"$error":"#DIV/0!"}},null,null,null,{"$f":"ROUNDDOWN(ROUND($D4,2)*(INDIRECT(CONCATENATE(\"ALGTS_DN_Beitragsssatz_\",$AB$1))/100),2)","v":0},{"$f":"MAX(0,(ROUND($D4,2)-$AB4)*12-INDIRECT(CONCATENATE(\"ALGTS_Werbungskosten_\",$AB$1)))","v":0},{"$f":"MAX(0,ROUNDDOWN($AC4*INDEX(INDIRECT(CONCATENATE(\"LST_JAHR_\",$AB$1)),3,MATCH($AC4,OFFSET(INDIRECT(CONCATENATE(\"LST_JAHR_\",$AB$1)),0,0,1),1))-INDEX(INDIRECT(CONCATENATE(\"LST_JAHR_\",$AB$1)),4,MATCH($AC4,OFFSET(INDIRECT(CONCATENATE(\"LST_JAHR_\",$AB$1)),0,0,1),1)),2)-INDIRECT(CONCATENATE(\"ALGTS_AVAB_\",$AB$1)))","v":0},{"$f":"ROUNDDOWN(ROUND($D4,2)/12,2)*2*12","v":0},{"$f":"ROUNDDOWN($AE4*(INDIRECT(CONCATENATE(\"ALGTS_DN_Beitragsssatz_SZ_\",$AB$1))/100),2)","v":0},{"$f":"ROUNDDOWN((ROUNDDOWN(((ROUND($D4,2)-$AB4)*12-$AD4)/12,2)+ROUNDDOWN(($AE4-$AF4-ROUNDDOWN(IF($AE4<=INDIRECT(CONCATENATE(\"ALGTS_DN_SZ_Freigrenze_\",$AB$1)),0,($AE4-$AF4-INDIRECT(CONCATENATE(\"ALGTS_DN_SZ_Freibetrag_\",$AB$1)))*(INDIRECT(CONCATENATE(\"ALGTS_Lohnsteuer_SZ_\",$AB$1))/100)),2))/12,2))/FW_Tage_im_Monat,2)","v":0},{"$f":"IF(ROUND($D4,2)<=INDIRECT(CONCATENATE(\"GFKG_\",$AB$1)),0,ROUND(IF($AG4*(INDIRECT(CONCATENATE(\"ALGTS_Grundbetrag_\",$AB$1))/100)>INDIRECT(CONCATENATE(\"ALGTS_AZR_\",$AB$1)),MIN($AG4*(INDIRECT(CONCATENATE(\"ALGTS_Grundbetrag_\",$AB$1))/100),INDIRECT(CONCATENATE(\"ALGTS_Maximum_\",$AB$1)))+INDIRECT(CONCATENATE(\"ALGTS_FZ_\",$AB$1)),MIN(INDIRECT(CONCATENATE(\"ALGTS_AZR_\",$AB$1))+INDIRECT(CONCATENATE(\"ALGTS_FZ_\",$AB$1)),$AG4*(INDIRECT(CONCATENATE(\"ALGTS_Obergrenze_FZ_\",$AB$1))/100))),2))","v":0},{"$f":"IF(ROUND($D4,2)<=INDIRECT(CONCATENATE(\"GFKG_\",$AB$1)),0,MAX(0,(ROUND(MIN(ROUND($D4,2),INDIRECT(CONCATENATE(\"HBMG_\",$AB$1)))/FW_Tage_im_Monat_Basis*$AC$1,2)-$R4-$U4-ROUND(($F4-$O4)*ROUND($D4,2)/FW_Wochen_im_Monat/$E4,2))))","v":0}]

{"sheet":"Muster Stammdaten","index":6,"n_rows":2,"n_cols":16,"rows_kept":2,"cut":false,"hidden":true,"merged":[]}
[1,2,3,4,5,6,7,8,9,10,11,12,13,14,15,16]
["SV-Nummer","Familienname","Vorname","Bruttoentgelt vor Kurzarbeit \nin Euro pro Monat","Normalarbeitszeit vor Kurzarbeit\nin Stunden pro Woche","Normalarbeitszeitstunden","Feiertage in Stunden","Stunden für die Ersatzleistungen gebühren","geleistete Arbeitsstunden","konsumierter Urlaub","konsumiertes Zeitguthaben/sonstige Dienstverhinderungen","Entgeltfortzahlung für Krankenstand","geleistete Überstunden","davon verrechnete Ausfallstunden für Qualifizierungsunterstützung","Abrechnungszeitraum von","Abrechnungszeitraum bis"]